bitfinex/quotes_ETHUSD_20250219
["timestamp","ask_amount","ask_price","bid_price","bid_amount"]
[1739942017184,3.72647,2683.5,2683.2,0.24422309]
[1739942017383,3.72671,2683.4,2683.2,0.24422309]
[1739942017590,3.72675,2683.3,2683.2,0.24422309]
[1739942017857,3.72675,2683.3,2683.2,0.97268975]
[1739942023596,3.72647,2683.5,2683.2,0.97268975]
[1739942023898,3.72666,2683.4,2683.2,0.97268975]
[1739942024395,3.72675,2683.3,2683.2,0.97268975]
[1739942029597,3.72675,2683.3,2683.2,1.09423361]
[1739942031992,4.54195,2683.3,2683.2,1.09423361]
[1739942032689,4.54195,2683.3,2683.2,0.85001052]
[1739942033315,4.54195,2683.3,2683.2,1.09440563]
[1739942037208,3.72675,2683.3,2683.2,1.09440563]
[1739942037388,3.72662,2683.4,2683.2,1.09440563]
[1739942037817,3.72675,2683.3,2683.2,1.09440563]
[1739942038684,3.72662,2683.4,2683.2,1.09440563]
[1739942038885,7.45336,2683.4,2683.2,1.09440563]
[1739942039621,7.45332,2683.4,2683.2,1.09440563]
[1739942039789,3.72662,2683.4,2683.2,1.09440563]
[1739942040318,3.72662,2683.4,2683.3,0.24439511]
[1739942040708,3.72662,2683.4,2683.3,0.36608273]
[1739942042627,4.97070275,2683.4,2683.3,0.36608273]
[1739942048123,5.84042103,2683.4,2683.3,0.36608273]
[1739942048309,6.67202103,2683.4,2683.3,0.36608273]
[1739942048510,6.67202103,2683.4,2683.3,0.24439511]
[1739942048913,9.67202103,2683.4,2683.3,0.24439511]
[1739942049644,4.50088,2682.7,2682.6,0.24439511]
[1739942049814,5.74496275,2682.7,2682.6,0.24439511]
[1739942050021,5.74496275,2682.7,2682.6,0.36670593]
[1739942050204,5.74496275,2682.7,2682.6,0.24439511]
[1739942050205,8.74496275,2682.7,2682.6,0.24439511]
[1739942050607,6.26338001,2682.7,2682.2,0.24439511]
[1739942050931,3.72814,2682.3,2682.2,0.24439511]
[1739942051130,3.72762,2682.7,2682.3,0.7535]
[1739942051443,3.72737,2682.9,2682.3,0.7535]
[1739942052144,3.72737,2682.9,2682.4,0.24439511]
[1739942052548,7.45481,2682.9,2682.4,0.24439511]
[1739942052720,3.72737,2682.9,2682.4,0.24439511]
[1739942053236,3.72737,2682.9,2682.5,0.24439511]
[1739942053420,3.72737,2682.9,2682.6,0.7546]
[1739942054103,3.72737,2682.9,2682.6,1.49753826]
[1739942055026,3.72758,2682.7,2682.6,0.74293826]
[1739942057111,4.473075,2682.7,2682.6,0.74293826]
[1739942057354,3.72758,2682.7,2682.6,0.74293826]
[1739942059561,3.72758,2682.7,2682.6,0.86589871]
[1739942060751,3.72745,2682.8,2682.6,0.86589871]
[1739942060946,7.53387,2683.2,2682.6,1.69129871]
[1739942061153,3.7271,2683.1,2682.6,1.69129871]
[1739942061855,3.72697,2683.2,2682.6,5.41891871]
[1739942062014,3.0,2683.1,2682.6,5.41891871]
[1739942062648,3.72717,2683.0,2682.6,1.69129871]
[1739942062950,3.72732,2682.9,2682.6,1.69129871]
[1739942063118,3.72732,2682.9,2682.7,0.24401257]
[1739942063312,3.72717,2683.0,2682.7,0.24401257]
[1739942063313,3.72717,2683.0,2682.8,0.12280923]
[1739942063620,3.72717,2683.0,2682.7,0.24401257]
[1739942063834,6.72717,2683.0,2682.9,0.1225484]
[1739942064033,6.72717,2683.0,2682.8,0.12264395]
[1739942064251,6.72717,2683.0,2682.9,0.1225484]
[1739942064549,6.72717,2683.0,2682.6,1.56833826]
[1739942064747,6.72717,2683.0,2682.7,0.12273951]
[1739942065345,3.0,2683.0,2682.7,0.12273951]
[1739942066444,3.0,2683.0,2682.7,0.3667918]
[1739942066852,3.7268,2683.3,2682.9,0.7825]
[1739942067214,3.7268,2683.3,2683.0,0.12232177]
[1739942067475,3.72701,2683.2,2683.0,0.12232177]
[1739942068051,3.72703,2683.1,2683.0,0.12232177]
[1739942068409,3.72703,2683.1,2682.7,0.7646]
[1739942068614,3.72703,2683.1,2683.0,0.12232177]
[1739942068814,3.72703,2683.1,2682.7,0.7646]
[1739942069041,3.72703,2683.1,2683.0,0.12232177]
[1739942069227,3.72703,2683.1,2682.7,0.7646]
[1739942069428,3.72703,2683.1,2683.0,0.12232177]
[1739942069628,3.72703,2683.1,2682.8,0.24363757]
[1739942069829,3.72703,2683.1,2683.0,0.12232177]
[1739942070029,3.72703,2683.1,2682.9,0.12241731]
[1739942070311,3.72703,2683.1,2683.0,0.12232177]
[1739942070511,3.72703,2683.1,2682.8,0.24363757]
[1739942070716,3.72703,2683.1,2682.9,0.12241731]
[1739942071352,3.72703,2683.1,2682.7,0.7646]
[1739942071554,3.72703,2683.1,2682.8,0.12251286]
[1739942071756,3.72703,2683.1,2682.7,0.7646]
[1739942071954,3.72703,2683.1,2682.8,0.12251286]
[1739942072157,3.72703,2683.1,2682.9,0.24368991]
[1739942072356,3.7268,2683.3,2683.0,0.12232177]
[1739942072629,3.72692,2683.2,2683.0,0.12232177]
[1739942073165,3.7268,2683.3,2683.0,0.12232177]
[1739942073374,3.72703,2683.1,2683.0,0.12232177]
[1739942074370,3.72703,2683.1,2682.7,0.7646]
[1739942074572,3.72703,2683.1,2683.0,0.12224769]
[1739942074746,3.72703,2683.1,2682.7,0.7646]
[1739942075067,3.72703,2683.1,2682.8,0.12243878]
[1739942075470,3.72703,2683.1,2682.8,0.2437541]
[1739942075669,5.38,2684.2,2683.1,0.8254]
[1739942075857,1.2977,2684.1,2683.4,0.8254]
[1739942076058,3.72622,2683.7,2683.4,0.8254]
[1739942076370,3.72622,2683.7,2683.5,0.12179858]
[1739942077367,7.45203,2683.9,2683.5,0.12179858]
[1739942077574,4.48542,2684.1,2683.5,0.12179858]
[1739942077729,3.72594,2683.9,2683.5,0.12179858]
[1739942077935,7.45195,2683.9,2683.5,0.12179858]
[1739942078531,3.72523,2684.4,2683.6,4.55169]
[1739942078775,3.72523,2684.4,2683.7,0.94700758]
[1739942078963,3.72537,2684.3,2683.7,4.67308758]
[1739942079338,3.7989,2684.5,2684.0,0.7958]
[1739942079575,6.72511,2684.5,2684.1,0.12064456]
[1739942079985,3.72505,2684.6,2684.1,0.12064456]
[1739942080276,3.7251,2684.5,2684.1,0.12064456]
[1739942081975,4.54416,2684.7,2684.1,0.12064456]
[1739942082162,3.72509,2684.5,2684.1,0.12064456]
[1739942082368,3.72497,2684.6,2684.1,0.12064456]
[1739942082751,3.72509,2684.5,2684.1,0.12064456]
[1739942082957,3.72509,2684.5,2684.4,0.75316275]
[1739942083144,5.01757237,2684.7,2684.4,0.87352096]
[1739942083685,3.72508,2684.5,2684.4,0.87352096]
[1739942083886,0.8193,2684.7,2684.4,0.87352096]
[1739942084182,3.72468,2684.8,2684.4,0.87352096]
[1739942084350,3.72468,2684.8,2684.4,1.66192096]
[1739942084681,4.52344,2684.9,2684.4,1.66192096]
[1739942085583,0.7989,2684.9,2684.4,1.66192096]
[1739942085781,4.52346,2684.9,2684.4,1.66192096]
[1739942085983,4.52343,2684.9,2684.4,0.87352096]
[1739942087092,0.7989,2684.9,2684.4,4.59873096]
[1739942087390,3.72443,2685.0,2684.4,4.59873096]
[1739942087592,3.72455,2684.9,2684.4,4.59873096]
[1739942088587,3.72443,2685.0,2684.4,4.59873096]
[1739942088951,3.72453,2684.9,2684.4,4.59873096]
[1739942091503,3.72443,2685.0,2684.4,4.59873096]
[1739942091658,3.72457,2684.9,2684.4,4.59873096]
[1739942091856,3.72443,2685.0,2684.4,4.59873096]
[1739942092091,7.44891,2685.0,2684.4,4.59873096]
[1739942092391,3.72416,2685.2,2684.6,3.72486]
[1739942092889,6.72426,2685.1,2684.7,0.11961066]
[1739942094067,3.72416,2685.2,2684.7,0.11961066]
[1739942094384,3.0,2685.1,2684.7,0.11961066]
[1739942094590,3.72416,2685.2,2684.7,0.11961066]
[1739942094765,3.72429,2685.1,2684.7,0.11961066]
[1739942094949,4.53653,2685.3,2684.5,4.48907]
[1739942095149,3.0,2685.1,2684.6,3.84391837]
[1739942095352,3.0,2685.1,2685.0,0.75079155]
[1739942095652,3.0,2685.1,2685.0,0.86947827]
[1739942096077,7.850314,2685.1,2685.0,0.86947827]
[1739942096682,7.850314,2685.1,2685.0,0.11868672]
[1739942096896,8.628914,2685.1,2685.0,0.11868672]
[1739942097204,3.72481,2684.7,2684.6,0.73735574]
[1739942097561,3.72481,2684.7,2684.6,0.85642411]
[1739942098325,7.44946,2684.8,2684.6,0.85642411]
[1739942098773,3.72467,2684.8,2684.6,0.85642411]
[1739942099882,7.44943,2684.8,2684.6,0.85642411]
[1739942100183,3.72467,2684.8,2684.6,0.85642411]
[1739942100605,3.72481,2684.7,2684.6,0.85642411]
[1739942100970,3.72467,2684.8,2684.6,0.85642411]
[1739942101182,3.0,2684.9,2684.6,1.65522411]
[1739942101504,3.0,2685.0,2684.6,1.53615574]
[1739942102004,3.72467,2684.8,2684.7,0.11887617]
[1739942102204,4.51377,2684.8,2684.7,0.11887617]
[1739942102372,0.7891,2684.8,2684.7,0.11887617]
[1739942102571,3.72461,2684.9,2684.7,0.11887617]
[1739942102772,7.44926,2684.9,2684.7,0.11887617]
[1739942102973,3.72461,2684.9,2684.7,0.11887617]
[1739942103766,3.753,2685.0,2684.6,0.73735574]
[1739942103972,3.753,2685.0,2684.7,0.11887617]
[1739942104171,6.7244,2685.0,2684.7,0.11887617]
[1739942104373,3.0,2685.0,2684.7,0.90497617]
[1739942105694,0.753,2685.2,2684.7,0.90497617]
[1739942105695,6.72413,2685.2,2684.7,0.90497617]
[1739942105879,3.0,2685.0,2684.7,0.90497617]
[1739942110743,6.72445,2685.0,2684.7,0.90497617]
[1739942111092,3.0,2685.0,2684.7,0.90497617]
[1739942113517,3.0,2685.4,2684.7,0.90497617]
[1739942113716,3.0,2685.0,2684.7,0.90497617]
[1739942113918,7.49397,2684.8,2684.7,0.11887617]
[1739942114252,3.72564,2684.1,2684.0,0.7671]
[1739942114452,3.72578,2684.0,2683.7,1.0371]
[1739942115758,3.72578,2684.0,2683.8,0.75628211]
[1739942115962,3.0,2684.1,2683.8,1.00027809]
[1739942116466,6.72565,2684.1,2683.8,1.00027809]
[1739942117251,3.0,2684.1,2683.8,1.00027809]
[1739942117431,3.0,2684.1,2683.8,0.75628211]
[1739942117826,3.72592,2684.0,2683.8,0.75628211]
[1739942119562,3.72592,2683.9,2683.8,0.75628211]
[1739942120476,7.48765,2684.1,2683.8,0.75628211]
[1739942120792,6.72575,2684.1,2683.8,0.75628211]
[1739942121901,3.7258,2684.0,2683.8,0.75628211]
[1739942123163,7.45169,2684.0,2683.8,0.75628211]
[1739942123374,3.72592,2683.9,2683.8,0.75628211]
[1739942124381,7.45167,2684.0,2683.8,0.75628211]
[1739942124596,3.7258,2684.0,2683.8,0.75628211]
[1739942125682,7.45169,2684.0,2683.8,0.75628211]
[1739942126556,7.45166,2684.0,2683.8,0.75628211]
[1739942126761,3.7258,2684.0,2683.8,0.75628211]
[1739942128171,3.72592,2683.9,2683.8,0.75628211]
[1739942128370,7.45167,2684.0,2683.8,0.75628211]
[1739942128564,3.7258,2684.0,2683.8,0.75628211]
[1739942128771,7.45168,2684.0,2683.8,0.75628211]
[1739942129389,3.7258,2684.0,2683.8,0.75628211]
[1739942129860,7.45171,2684.0,2683.8,0.75628211]
[1739942130064,3.7258,2684.0,2683.8,0.75628211]
[1739942130587,9.21572001,2684.1,2683.8,0.75628211]
[1739942130780,5.49008001,2684.1,2683.8,0.75628211]
[1739942130986,3.72578,2684.0,2683.8,0.75628211]
[1739942131689,3.72591,2684.0,2683.8,0.75628211]
[1739942131886,5.020074,2684.0,2683.8,0.75628211]
[1739942132189,3.72671,2683.4,2683.0,0.8241]
[1739942132484,2.49008001,2683.2,2682.8,6.4291]
[1739942132783,6.21697001,2683.2,2682.8,6.4291]
[1739942132982,6.21697001,2683.2,2682.8,6.1591]
[1739942133187,3.31418001,2683.5,2682.8,6.1591]
[1739942133370,6.674164,2684.0,2683.1,4.47666412]
[1739942133371,4.55025,2683.8,2683.1,4.47666412]
[1739942133571,3.0,2683.7,2683.2,0.7991]
[1739942133771,6.21647001,2683.6,2683.2,0.7991]
[1739942133947,9.94291001,2683.6,2683.2,0.7991]
[1739942134150,2.49008001,2683.6,2683.1,0.74967412]
[1739942134350,3.72671,2683.4,2683.1,0.74967412]
[1739942134551,3.0,2683.5,2683.1,0.74967412]
[1739942134753,3.0,2683.5,2683.2,0.11864603]
[1739942135384,3.72643,2683.6,2683.2,0.11864603]
[1739942135885,3.72632,2683.7,2683.2,0.11864603]
[1739942136088,2.49008001,2683.9,2683.4,0.8241]
[1739942136451,5.49008001,2683.9,2683.5,0.11864944]
[1739942136852,3.0,2684.1,2683.5,3.84502944]
[1739942137065,3.72579,2684.0,2683.5,0.11864944]
[1739942137350,3.72593,2683.9,2683.5,0.11864944]
[1739942137851,6.21601001,2683.9,2683.5,0.11864944]
[1739942138087,2.49008001,2683.9,2683.5,0.11864944]
[1739942138659,2.49008001,2683.9,2683.5,3.84510944]
[1739942138862,2.49008001,2683.9,2683.8,0.74549101]
[1739942139292,2.49008001,2683.9,2683.8,0.86374593]
[1739942140567,3.0,2684.1,2683.8,0.86374593]
[1739942142093,6.21600001,2683.9,2683.8,0.86374593]
[1739942142458,2.49008001,2683.9,2683.8,0.86374593]
[1739942142857,6.21600001,2683.9,2683.8,0.86374593]
[1739942143691,10.51017601,2683.9,2683.8,0.11825492]
[1739942143990,3.72663,2683.4,2683.0,5.36]
[1739942144193,3.72663,2683.4,2682.9,1.0257]
[1739942144485,3.72663,2683.4,2683.1,0.11438587]
[1739942144695,3.72676,2683.3,2682.9,1.0257]
[1739942145718,3.72663,2683.4,2682.9,1.0257]
[1739942145914,3.72684,2683.3,2682.9,1.0257]
[1739942146219,3.72684,2683.3,2683.0,0.24382674]
[1739942146715,3.72663,2683.4,2683.0,0.24382674]
[1739942147391,2.49008001,2683.5,2683.2,0.75382045]
[1739942148395,7.4528,2683.6,2683.2,0.75382045]
[1739942148897,3.72655,2683.5,2683.2,0.75382045]
[1739942149085,3.72636,2683.6,2683.2,0.75382045]
[1739942149391,0.7851,2683.9,2683.3,0.7549]
[1739942149596,3.72592,2683.9,2683.3,4.59575482]
[1739942149902,6.21614001,2683.8,2683.3,0.86909482]
[1739942150544,9.94229001,2683.8,2683.3,0.86909482]
[1739942150740,3.7262,2683.7,2683.3,0.86909482]
[1739942154123,3.72641,2683.6,2683.3,0.86909482]
[1739942155050,9.94231001,2683.8,2683.3,0.86909482]
[1739942155861,9.94231001,2683.8,2683.4,0.24377227]
[1739942156061,6.21614001,2683.8,2683.4,0.24377227]
[1739942156224,3.72581,2684.0,2683.4,3.97038227]
[1739942156431,3.72552,2684.2,2683.6,0.7842]
[1739942156631,3.72572,2684.1,2683.6,0.7842]
[1739942156862,3.72572,2684.1,2683.7,0.11402259]
[1739942157332,7.45114,2684.2,2683.7,0.11402259]
[1739942157531,3.72552,2684.2,2683.7,0.11402259]
[1739942158163,3.72577,2684.1,2683.7,0.11402259]
[1739942158563,3.72552,2684.2,2683.7,0.11402259]
[1739942158765,7.45113,2684.2,2683.7,0.11402259]
[1739942159059,7.45115,2684.2,2683.7,0.11402259]
[1739942159261,3.72552,2684.2,2684.0,0.74270774]
[1739942159630,3.72565,2684.1,2684.0,0.74270774]
[1739942160825,3.72552,2684.2,2684.0,0.74270774]
[1739942161052,3.72564,2684.1,2684.0,0.74270774]
[1739942161362,3.72552,2684.2,2684.0,0.74270774]
[1739942161527,3.72525,2684.4,2684.0,1.51110774]
[1739942161863,7.45055,2684.4,2684.0,1.51110774]
[1739942162261,3.72525,2684.4,2684.0,1.51110774]
[1739942162567,3.72544,2684.3,2684.0,1.51110774]
[1739942162737,6.21533001,2684.4,2684.0,1.51110774]
[1739942162943,6.98382001,2684.1,2684.0,0.74270774]
[1739942163366,3.72597,2683.9,2683.6,0.27]
[1739942163753,2.49008001,2684.1,2683.6,0.27]
[1739942163943,6.98347001,2684.4,2683.8,3.72605]
[1739942164146,6.98347001,2684.4,2683.8,4.46330489]
[1739942164469,3.72537,2684.3,2683.8,0.73725489]
[1739942164770,3.72537,2684.3,2683.9,0.11383163]
[1739942164969,3.72565,2684.1,2683.9,0.11383163]
[1739942165143,3.72553,2684.2,2683.9,0.11383163]
[1739942165324,6.98346001,2684.4,2683.9,0.11383163]
[1739942165530,10.70878001,2684.4,2683.9,0.11383163]
[1739942166061,3.72547,2684.3,2683.9,0.11383163]
[1739942166264,3.72555,2684.2,2683.9,0.11383163]
[1739942167660,3.72538,2684.3,2683.9,0.11383163]
[1739942168230,3.0,2684.3,2683.9,0.11383163]
[1739942168434,6.72509,2684.5,2684.0,0.8007]
[1739942168846,6.72509,2684.5,2684.1,0.11342526]
[1739942169050,3.0,2684.5,2684.1,0.11342526]
[1739942169272,6.72511,2684.5,2684.1,0.11342526]
[1739942169436,3.0,2684.5,2684.1,0.11342526]
[1739942169633,0.8078,2684.7,2684.1,0.11342526]
[1739942169841,3.72468,2684.8,2684.3,0.8116]
[1739942170033,3.0,2684.7,2684.3,0.8116]
[1739942170270,6.72484,2684.7,2684.4,0.1128668]
[1739942170639,2.49008001,2684.5,2684.4,0.1128668]
[1739942170965,3.72522,2684.4,2684.3,0.73652168]
[1739942171164,2.49008001,2684.5,2684.3,0.84948392]
[1739942171339,6.72484,2684.7,2684.3,0.84948392]
[1739942171962,3.0,2684.7,2684.3,0.84948392]
[1739942172137,3.72514,2684.5,2684.3,0.84948392]
[1739942172674,3.72522,2684.4,2684.3,0.84948392]
[1739942173264,2.49008001,2684.5,2684.3,0.84948392]
[1739942173980,3.72496,2684.6,2684.3,0.84948392]
[1739942174145,3.0,2684.7,2684.3,0.84948392]
[1739942174347,4.53823,2685.0,2684.4,4.48031]
[1739942174545,3.72454,2684.9,2684.5,0.11268067]
[1739942174745,3.72468,2684.8,2684.5,0.11268067]
[1739942175359,3.72482,2684.7,2684.5,0.11268067]
[1739942175807,3.72494,2684.6,2684.5,0.11268067]
[1739942176098,9.93954001,2684.8,2684.5,0.11268067]
[1739942176299,9.93953001,2684.8,2684.3,0.73652168]
[1739942176499,6.21476001,2684.8,2684.6,0.11258525]
[1739942176703,3.72481,2684.7,2684.3,0.73652168]
[1739942176903,6.21476001,2684.8,2684.3,0.73652168]
[1739942177081,9.93952001,2684.8,2684.4,0.11277611]
[1739942177604,6.21476001,2684.8,2684.4,0.11277611]
[1739942177824,2.49008001,2684.8,2684.4,0.11277611]
[1739942178104,6.21478001,2684.8,2684.4,0.11277611]
[1739942178265,3.72491,2684.7,2684.4,0.11277611]
[1739942179292,3.72508,2684.5,2684.4,0.11277611]
[1739942179588,7.44983,2684.7,2684.4,0.11277611]
[1739942180510,3.72491,2684.7,2684.4,0.11277611]
[1739942180713,3.72495,2684.6,2684.4,0.11277611]
[1739942183478,2.49008001,2684.8,2684.4,0.11277611]
[1739942183678,3.72502,2684.6,2684.4,0.11277611]
[1739942187093,3.72508,2684.5,2684.4,0.11277611]
[1739942188130,0.8156,2684.6,2684.4,0.11277611]
[1739942188345,3.72488,2684.7,2684.4,0.11277611]
[1739942188513,3.72498,2684.6,2684.4,0.11277611]
[1739942189346,10.02916001,2684.5,2684.4,0.11277611]
[1739942189501,0.814,2684.0,2683.3,0.7713]
[1739942189703,6.21640001,2683.7,2683.4,0.10555928]
[1739942189903,3.72633,2683.6,2683.5,0.74779127]
[1739942190249,3.72633,2683.6,2683.5,0.85325505]
[1739942190250,4.54033,2683.6,2683.5,0.85325505]
[1739942190447,5.616003,2683.6,2683.5,0.85325505]
[1739942190620,5.616003,2683.6,2683.5,0.10546378]
[1739942191153,3.72658,2683.5,2683.1,8.378]
[1739942192503,3.72667,2683.4,2683.2,0.52287707]
[1739942192726,1.889673,2683.6,2683.2,0.52287707]
[1739942193028,5.616123,2683.6,2683.3,0.74584954]
[1739942193200,1.889673,2683.6,2683.3,0.74584954]
[1739942193396,3.72651,2683.5,2683.3,0.74584954]
[1739942193596,3.72661,2683.4,2683.3,0.74584954]
[1739942194028,3.72675,2683.3,2683.2,0.27928313]
[1739942194230,9.21669001,2683.4,2683.1,8.378]
[1739942194408,3.72689,2683.2,2683.1,8.378]
[1739942195043,3.72708,2683.1,2682.6,0.7713]
[1739942195212,3.72745,2682.8,2682.4,0.7713]
[1739942195423,3.72745,2682.8,2682.7,0.27895753]
[1739942195954,6.21753001,2682.8,2682.7,0.27895753]
[1739942196103,2.49008001,2682.8,2682.7,0.27895753]
[1739942196705,2.49008001,2683.4,2682.7,0.7995]
[1739942196900,0.38106263,2683.3,2682.7,0.7995]
[1739942197101,4.10786263,2683.3,2682.8,0.10686765]
[1739942197329,3.0,2683.2,2682.7,0.7995]
[1739942197533,3.38106263,2683.3,2682.8,0.10686765]
[1739942197732,4.36646949,2683.2,2682.7,0.7995]
[1739942197931,4.36646949,2683.2,2682.8,0.10686765]
[1739942198142,4.36646949,2683.2,2682.7,0.7995]
[1739942198345,4.36646949,2683.2,2682.8,0.10686765]
[1739942198548,4.36646949,2683.2,2682.7,0.7995]
[1739942198708,4.36646949,2683.2,2682.8,0.10686765]
[1739942199042,0.8106263,2683.5,2682.7,0.7995]
[1739942199247,9.10634,2683.6,2683.1,0.8221]
[1739942199605,6.72648,2683.5,2683.2,0.1064572]
[1739942200211,3.0,2683.5,2683.2,0.1064572]
[1739942200411,6.72636,2683.6,2683.2,0.1064572]
[1739942200613,3.72621,2683.7,2683.2,0.1064572]
[1739942201406,3.72636,2683.6,2683.2,0.1064572]
[1739942201946,3.72662,2683.4,2683.2,0.1064572]
[1739942203752,2.49008001,2683.3,2683.2,0.1064572]
[1739942203941,5.49008001,2683.3,2683.2,0.1064572]
[1739942204276,5.49008001,2683.3,2682.7,0.7717]
[1739942204277,6.1369,2683.5,2682.7,0.7717]
[1739942204650,5.38,2683.5,2682.9,0.7717]
[1739942204968,5.38,2683.5,2683.1,3.72692]
[1739942205170,5.38,2683.5,2683.2,0.10685865]
[1739942205371,5.38,2683.5,2683.0,4.49885]
[1739942205557,5.38,2683.5,2683.1,0.10695418]
[1739942205878,5.38,2683.5,2683.1,3.83396418]
[1739942206079,5.38,2683.5,2683.1,3.83388418]
[1739942206271,5.38,2683.5,2683.1,0.10695418]
[1739942206452,9.10647,2683.5,2683.1,0.10695418]
[1739942208078,3.72647,2683.5,2683.1,0.10695418]
[1739942208274,2.49008001,2683.4,2683.1,0.10695418]
[1739942208462,6.21675001,2683.4,2683.1,0.10695418]
[1739942208866,3.72676,2683.3,2682.9,0.72898843]
[1739942209068,3.72676,2683.3,2683.2,0.10681339]
[1739942209266,3.72676,2683.3,2682.9,0.72898843]
[1739942209442,3.72676,2683.3,2683.2,0.10681339]
[1739942209644,3.72676,2683.3,2682.9,0.72898843]
[1739942209867,3.72676,2683.3,2683.2,0.10681339]
[1739942210042,3.72676,2683.3,2682.9,0.72898843]
[1739942210242,3.72676,2683.3,2683.2,0.10681339]
[1739942210451,6.21678001,2683.4,2682.9,4.45628843]
[1739942210775,5.38,2684.0,2683.4,4.51791]
[1739942210776,9.10586,2684.0,2683.4,4.51791]
[1739942210976,9.64386,2684.0,2683.5,0.10655514]
[1739942211148,9.64386,2684.0,2683.4,4.51791]
[1739942211346,13.36976,2684.0,2683.4,4.51791]
[1739942211588,3.72595,2683.9,2683.5,0.10655514]
[1739942211885,1.336981,2683.8,2683.5,0.10655514]
[1739942212177,0.7892,2684.7,2684.2,0.8254]
[1739942212352,4.51403,2684.7,2684.3,0.10564991]
[1739942212539,3.0,2684.6,2684.2,0.8254]
[1739942212743,4.51403,2684.7,2684.3,0.10564991]
[1739942212939,4.51403,2684.7,2684.2,0.8254]
[1739942212940,0.451403,2684.6,2684.2,0.8254]
[1739942213144,3.451403,2684.6,2684.3,0.10564991]
[1739942213384,3.451403,2684.6,2684.2,0.8254]
[1739942213555,3.451403,2684.6,2684.3,0.10564991]
[1739942213756,3.451403,2684.6,2684.2,0.8254]
[1739942214085,3.451403,2684.6,2684.3,0.10564991]
[1739942214381,3.451403,2684.6,2684.2,0.8254]
[1739942214546,3.0,2684.6,2684.3,0.10564991]
[1739942214745,3.0,2684.6,2684.2,0.8254]
[1739942214947,3.0,2684.6,2684.3,0.10564991]
[1739942215147,3.0,2684.6,2684.2,0.8254]
[1739942215347,3.0,2684.8,2684.3,0.10564991]
[1739942215586,3.699192,2684.8,2684.5,0.74528452]
[1739942215744,7.423862,2684.8,2684.6,0.10493385]
[1739942216185,3.72481,2684.7,2684.6,0.10493385]
[1739942216748,3.699192,2684.8,2684.6,0.10493385]
[1739942216949,3.0,2684.8,2684.6,0.10493385]
[1739942218201,6.1327,2685.2,2684.7,0.7926]
[1739942218376,5.38,2685.2,2684.7,4.51739]
[1739942218559,9.10413,2685.2,2684.7,0.7926]
[1739942218763,3.72426,2685.1,2684.7,0.7926]
[1739942219198,7.44863,2685.1,2684.7,0.7926]
[1739942219701,3.72426,2685.1,2684.7,0.7926]
[1739942221202,3.72441,2685.0,2684.7,0.7926]
[1739942221780,3.72441,2685.0,2684.5,4.47027452]
[1739942221980,3.72441,2685.0,2684.6,0.05448027]
[1739942222685,3.72455,2684.9,2684.6,0.05448027]
[1739942223005,3.72441,2685.0,2684.6,0.05448027]
[1739942223192,6.21440001,2685.1,2684.6,0.05448027]
[1739942223701,2.49008001,2685.1,2684.6,0.05448027]
[1739942223900,3.72418,2685.2,2684.7,0.7694]
[1739942224481,3.72438,2685.1,2684.7,0.7694]
[1739942225191,3.72418,2685.2,2684.7,0.7694]
[1739942225392,3.72426,2685.1,2684.7,0.7694]
[1739942225617,3.72418,2685.2,2684.7,0.7694]
[1739942226507,3.0,2685.1,2684.7,4.49414]
[1739942227604,9.10385,2685.4,2684.7,4.49415]
[1739942227810,3.72385,2685.4,2684.8,3.72464]
[1739942228024,3.72399,2685.3,2684.8,3.72464]
[1739942229306,6.21469001,2684.9,2684.3,0.8105]
[1739942229640,6.21469001,2684.9,2684.4,0.27]
[1739942230194,3.72461,2684.9,2684.4,0.27]
[1739942230433,3.72471,2684.8,2684.4,0.27]
[1739942230797,3.72461,2684.9,2684.6,0.76222266]
[1739942230998,8.25807,2685.1,2684.6,0.76222266]
[1739942231700,3.7244,2685.0,2684.6,0.76222266]
[1739942233116,3.72464,2684.9,2684.6,0.76222266]
[1739942233624,3.8094,2685.1,2684.6,0.76222266]
[1739942233820,7.53365,2685.1,2684.6,0.76222266]
[1739942234146,6.72425,2685.1,2684.7,0.7628]
[1739942234636,7.18128934,2685.5,2684.7,0.7628]
[1739942234800,3.72387,2685.4,2684.9,3.72442]
[1739942235000,3.0,2685.4,2684.9,3.72442]
[1739942235564,0.1840078,2685.5,2685.1,3.72415]
[1739942235906,3.0,2685.6,2685.1,3.72415]
[1739942236406,3.0,2685.6,2684.9,3.72448]
[1739942236407,6.21336001,2685.8,2685.4,0.7628]
[1739942236611,3.72358,2685.6,2685.4,0.7628]
[1739942236801,3.72358,2685.6,2685.2,0.27]
[1739942236802,3.72358,2685.6,2685.2,1.0492]
[1739942237002,7.44725,2685.6,2685.2,1.0492]
[1739942237234,3.72358,2685.6,2685.2,1.0492]
[1739942238241,3.72358,2685.6,2685.4,0.73396344]
[1739942241167,3.7237,2685.5,2685.4,0.73396344]
[1739942242063,6.72342,2685.7,2685.4,0.73396344]
[1739942243861,3.72342,2685.7,2685.4,0.73396344]
[1739942244876,0.1487339,2685.9,2685.6,3.72356]
[1739942246045,0.1487339,2685.9,2685.5,0.8169]
[1739942246245,0.1487339,2685.9,2685.5,4.54057]
[1739942247165,0.1487339,2685.9,2685.5,8.26418]
[1739942247368,0.1487339,2685.9,2685.5,4.54051]
[1739942248670,3.7235,2685.7,2685.5,0.8169]
[1739942248987,3.46861391,2685.9,2685.4,0.73396344]
[1739942249288,3.72344,2685.7,2685.4,0.73396344]
[1739942250255,6.21378001,2685.5,2685.4,0.73396344]
[1739942250585,3.0,2685.5,2685.4,0.73396344]
[1739942252487,6.7237,2685.5,2685.4,0.73396344]
[1739942252866,3.0,2685.5,2685.4,0.73396344]
[1739942253061,3.72366,2685.6,2685.4,0.73396344]
[1739942253884,3.0,2685.8,2685.4,0.73396344]
[1739942255073,6.72336,2685.8,2685.4,0.73396344]
[1739942257152,3.7235,2685.7,2685.4,0.73396344]
[1739942257364,3.0,2685.8,2685.4,0.73396344]
[1739942257656,6.72328,2685.8,2685.4,0.73396344]
[1739942258892,3.72346,2685.7,2685.4,0.73396344]
[1739942259070,3.72356,2685.6,2685.4,0.73396344]
[1739942259661,3.7242,2685.2,2685.0,6.416]
[1739942259863,3.72394,2685.4,2685.0,1.056]